bitfinex-derivatives/quotes_BTCF0:USTF0_20241231
["timestamp","ask_amount","ask_price","bid_price","bid_amount"]
[1735613168204,0.3608,92588.0,92573.0,0.3618]
[1735613168402,0.3608,92588.0,92573.0,0.3648]
[1735613168995,0.07369096,92590.0,92574.0,0.003]
[1735613169202,0.08367278,92595.0,92581.0,0.3608]
[1735613169399,0.08367278,92595.0,92582.0,0.0313]
[1735613170198,0.07369096,92592.0,92582.0,0.0313]
[1735613172215,0.07369096,92592.0,92582.0,0.0333]
[1735613172911,0.07469096,92592.0,92582.0,0.0313]
[1735613174020,0.07469096,92592.0,92582.0,0.0323]
[1735613174611,0.07369096,92592.0,92582.0,0.0343]
[1735613176606,0.07369096,92592.0,92582.0,0.3951]
[1735613177012,0.07369096,92592.0,92582.0,0.3941]
[1735613177313,0.07369096,92592.0,92582.0,0.3951]
[1735613183211,0.3608,92583.0,92571.0,0.35285098]
[1735613183411,0.14738192,92581.0,92571.0,0.35285098]
[1735613184218,0.22472718,92581.0,92571.0,0.35285098]
[1735613184613,0.22472718,92581.0,92563.0,0.3608]
[1735613184814,0.11236359,92570.0,92563.0,0.3608]
[1735613185009,0.0307,92569.0,92563.0,0.3608]
[1735613185912,0.0307,92569.0,92563.0,0.3618]
[1735613187512,0.0307,92569.0,92563.0,0.3628]
[1735613188214,0.0307,92569.0,92563.0,0.3608]
[1735613188412,0.0307,92569.0,92563.0,0.3618]
[1735613191022,0.0317,92569.0,92563.0,0.3608]
[1735613192212,0.0678363,92569.0,92563.0,0.3608]
[1735613193518,0.0678363,92569.0,92563.0,0.3618]
[1735613194427,0.0668363,92569.0,92563.0,0.3628]
[1735613195622,0.0678363,92569.0,92563.0,0.3618]
[1735613196317,0.0678363,92569.0,92563.0,0.3608]
[1735613198822,0.0668363,92569.0,92563.0,0.3608]
[1735613199424,0.0668363,92569.0,92563.0,0.3618]
[1735613200324,0.0668363,92569.0,92563.0,0.3608]
[1735613200928,0.0678363,92569.0,92563.0,0.3608]
[1735613202129,0.0668363,92569.0,92563.0,0.3608]
[1735613204136,0.0678363,92569.0,92563.0,0.3608]
[1735613204633,0.0668363,92569.0,92561.0,0.3608]
[1735613205033,0.84708001,92586.0,92561.0,0.3608]
[1735613205227,0.48628001,92586.0,92580.0,0.3608]
[1735613205428,0.48472,92586.0,92581.0,0.0302]
[1735613206433,0.48472,92586.0,92580.0,0.3608]
[1735613206937,0.48472,92586.0,92572.0,1.5]
[1735613207124,0.1474345,92582.0,92571.0,0.0302]
[1735613207329,0.48772,92586.0,92571.0,0.0302]
[1735613207330,0.525306,92586.0,92571.0,0.0302]
[1735613207529,0.07371725,92581.0,92577.0,0.3608]
[1735613207730,0.523706,92586.0,92577.0,0.3608]
[1735613207731,0.52526601,92586.0,92577.0,0.3608]
[1735613207925,0.520706,92586.0,92577.0,0.3608]
[1735613208134,0.523706,92586.0,92577.0,0.3608]
[1735613208739,0.005,92581.0,92577.0,0.3608]
[1735613209239,0.52326601,92586.0,92585.0,0.054104]
[1735613209240,0.00156001,92586.0,92585.0,0.054104]
[1735613209441,0.07371725,92610.0,92585.0,0.3608]
[1735613209625,0.002,92586.0,92585.0,0.3608]
[1735613209834,0.01095407,92615.0,92603.0,0.054093]
[1735613210137,0.03566874,92606.0,92605.0,0.054092]
[1735613210331,0.48584001,92616.0,92598.0,0.3608]
[1735613210332,0.48476,92616.0,92598.0,0.3608]
[1735613210544,0.3608,92623.0,92615.0,0.054086]
[1735613210735,0.39644736,92623.0,92615.0,0.054086]
[1735613211652,0.40544736,92623.0,92615.0,0.055086]
[1735613211849,0.40544736,92623.0,92615.0,0.001]
[1735613213054,0.41044736,92623.0,92615.0,0.001]
[1735613215745,0.41044736,92623.0,92621.0,0.054082]
[1735613216060,0.014,92623.0,92621.0,0.054082]
[1735613216252,0.014,92623.0,92622.0,1.5]
[1735613216951,0.015,92623.0,92622.0,1.5]
[1735613217351,0.006,92623.0,92622.0,1.5]
[1735613217551,0.015,92623.0,92622.0,1.5]
[1735613217954,0.006,92623.0,92622.0,1.5]
[1735613218265,0.015,92623.0,92622.0,1.501]
[1735613218450,0.015,92623.0,92622.0,0.001]
[1735613218954,0.015,92623.0,92622.0,0.002]
[1735613223155,0.015,92623.0,92622.0,0.032]
[1735613223860,0.015,92623.0,92622.0,1.532]
[1735613228156,0.006,92623.0,92622.0,1.536]
[1735613228756,0.03536462,92637.0,92622.0,1.535]
[1735613229065,0.48584001,92643.0,92637.0,0.054073]
[1735613229254,0.48476,92643.0,92637.0,0.054073]
[1735613229454,0.48476,92643.0,92636.0,0.3608]
[1735613229659,0.48476,92643.0,92639.0,0.054072]
[1735613231659,0.52200803,92643.0,92637.0,0.00056]
[1735613231965,0.52200803,92643.0,92636.0,0.3608]
[1735613232161,0.52400803,92643.0,92636.0,0.3608]
[1735613232363,0.3608,92641.0,92633.0,1.50056]
[1735613232560,0.0325,92640.0,92633.0,1.554076]
[1735613233066,0.0307,92639.0,92633.0,1.554076]
[1735613235166,0.0307,92639.0,92633.0,0.055076]
[1735613235567,0.0307,92639.0,92637.0,0.3608]
[1735613235769,0.0307,92639.0,92638.0,0.054073]
[1735613237073,0.0327,92639.0,92638.0,0.054073]
[1735613237972,0.0337,92639.0,92638.0,0.054073]
[1735613238977,0.0317,92639.0,92638.0,0.054073]
[1735613239165,0.0337,92639.0,92638.0,0.054073]
[1735613240374,0.0317,92639.0,92638.0,0.058073]
[1735613240975,0.0307,92639.0,92638.0,0.060073]
[1735613241877,0.0307,92639.0,92638.0,0.059073]
[1735613242273,0.0307,92639.0,92638.0,0.058073]
[1735613245480,0.0307,92639.0,92638.0,0.004]
[1735613248181,0.3608,92650.0,92638.0,0.004]
[1735613248182,0.00108001,92663.0,92638.0,0.304]
[1735613248374,0.1,92700.0,92668.0,0.054055]
[1735613248580,0.1,92700.0,92684.0,0.3608]
[1735613248581,0.0906,92699.0,92684.0,0.3608]
[1735613249083,0.3906,92699.0,92684.0,0.3608]
[1735613249278,0.3608,92688.0,92676.0,0.3608]
[1735613249472,0.3608,92678.0,92672.0,0.00056]
[1735613249784,0.0956,92677.0,92662.0,0.3608]
[1735613249971,0.0956,92677.0,92663.0,1.5]
[1735613250368,0.0956,92677.0,92662.0,0.3608]
[1735613250882,0.0956,92677.0,92662.0,1.8608]
[1735613251079,0.0956,92677.0,92662.0,0.3608]
[1735613251278,0.0976,92677.0,92662.0,0.3608]
[1735613251479,0.11223397,92672.0,92662.0,0.3608]
[1735613253073,0.004,92672.0,92662.0,0.3608]
[1735613253886,0.11623397,92672.0,92662.0,0.3608]
[1735613254580,0.15977676,92672.0,92662.0,0.3608]
[1735613254775,0.3608,92670.0,92654.0,0.3608]
[1735613254982,0.11223397,92660.0,92654.0,0.3608]
[1735613256078,0.47303397,92670.0,92654.0,0.3608]
[1735613257985,0.0309,92669.0,92654.0,0.3608]
[1735613258387,0.3608,92662.0,92647.0,0.00056]
[1735613258688,0.3608,92662.0,92637.0,0.3608]
[1735613258689,0.11223397,92657.0,92637.0,0.3608]
[1735613258878,0.065,92656.0,92638.0,1.5]
[1735613259591,0.065,92656.0,92637.0,0.3608]
[1735613261084,0.065,92656.0,92645.0,0.3608]
[1735613261276,0.3608,92651.0,92637.0,0.3608]
[1735613261477,0.3608,92642.0,92629.0,0.0324]
[1735613261684,0.11223397,92640.0,92629.0,0.0324]
[1735613262182,0.11223397,92640.0,92637.0,0.002]
[1735613262385,0.3608,92642.0,92637.0,0.002]
[1735613262583,0.3608,92642.0,92626.0,0.3608]
[1735613262786,0.3608,92633.0,92626.0,0.3608]
[1735613264879,0.3618,92633.0,92626.0,0.3608]
[1735613265581,0.3638,92633.0,92626.0,0.3608]
[1735613265977,0.3648,92633.0,92626.0,0.3608]
[1735613266177,0.3658,92633.0,92626.0,0.3608]
[1735613267679,0.3638,92633.0,92626.0,0.3608]
[1735613267884,0.3648,92633.0,92627.0,1.5]
[1735613268282,0.004,92633.0,92627.0,1.5]
[1735613268483,0.3648,92633.0,92627.0,1.5]
[1735613268681,0.3618,92633.0,92627.0,1.5]
[1735613268888,0.3658,92633.0,92627.0,1.5]
[1735613269186,0.005,92633.0,92627.0,1.5]
[1735613269793,0.005,92633.0,92629.0,0.3608]
[1735613270582,0.006,92633.0,92629.0,0.3608]
[1735613270790,0.006,92633.0,92631.0,0.3608]
[1735613271481,0.007,92633.0,92631.0,0.3608]
[1735613272000,0.04461742,92642.0,92631.0,0.3608]
[1735613272291,0.48436,92650.0,92631.0,0.3608]
[1735613272292,0.009,92633.0,92631.0,0.3618]
[1735613273186,0.003,92633.0,92631.0,0.3608]
[1735613273495,0.003,92633.0,92632.0,1.5]
[1735613273496,0.009,92633.0,92632.0,1.5]
[1735613274393,0.006,92633.0,92632.0,1.5]
[1735613274786,0.003,92642.0,92632.0,1.5]
[1735613274991,0.006,92633.0,92632.0,1.5]
[1735613275195,0.006,92633.0,92632.0,1.8608]
[1735613275383,0.003,92633.0,92632.0,1.8618]
[1735613275700,0.009,92633.0,92632.0,1.8618]
[1735613276394,0.009,92633.0,92632.0,0.3618]
[1735613276998,0.05428224,92633.0,92632.0,0.3618]
[1735613277700,0.05428224,92633.0,92618.0,0.3608]
[1735613278001,0.05428224,92633.0,92613.0,0.3608]
[1735613278002,0.3608,92624.0,92613.0,0.3608]
[1735613278198,0.11223397,92623.0,92613.0,0.3608]
[1735613278398,0.11223397,92623.0,92602.0,0.0331]
[1735613278694,0.11223397,92612.0,92599.0,0.3608]
[1735613279693,0.3608,92606.0,92599.0,0.3608]
[1735613280502,0.3608,92606.0,92602.0,0.001]
[1735613281300,0.15775105,92612.0,92602.0,0.001]
[1735613281899,0.001,92606.0,92599.0,0.3608]
[1735613282494,0.001,92606.0,92599.0,0.7216]
[1735613282700,0.45588371,92613.0,92606.0,0.054091]
[1735613282894,0.4548037,92613.0,92612.0,0.3608]
[1735613283099,0.04430567,92618.0,92612.0,0.414888]
[1735613283297,0.3608,92635.0,92617.0,1.5]
[1735613283605,0.11223397,92640.0,92626.0,0.3608]
[1735613284798,0.005,92635.0,92626.0,0.3608]
[1735613284996,0.005,92635.0,92626.0,0.3618]
[1735613286596,0.17129914,92640.0,92626.0,0.3628]
[1735613286797,0.17129914,92640.0,92626.0,0.3428]
[1735613287208,0.009,92635.0,92626.0,0.3428]
[1735613287401,0.009,92635.0,92626.0,0.3418]
[1735613287599,0.015,92635.0,92626.0,0.3428]
[1735613287909,0.006,92635.0,92626.0,0.3428]
[1735613288299,0.006,92635.0,92626.0,0.002]
[1735613288502,0.015,92635.0,92630.0,0.3608]
[1735613290105,0.009,92635.0,92630.0,0.3608]
[1735613290324,0.016,92635.0,92630.0,0.3618]
[1735613290606,0.007,92635.0,92630.0,0.3618]
[1735613290912,0.016,92635.0,92630.0,0.3628]
[1735613291703,0.016,92635.0,92630.0,0.3428]
[1735613297513,0.016,92635.0,92630.0,0.3228]
[1735613298316,0.009,92635.0,92630.0,0.3228]
[1735613298510,0.0641,92639.0,92630.0,0.3238]
[1735613299106,0.0641,92639.0,92630.0,0.3218]
[1735613299406,0.05699089,92639.0,92630.0,0.3218]
[1735613300019,0.05699089,92639.0,92630.0,0.3208]
[1735613303214,0.05799089,92639.0,92630.0,0.3208]
[1735613303819,0.05899089,92639.0,92630.0,0.3208]
[1735613304015,0.05799089,92639.0,92630.0,0.3208]
[1735613304520,0.05899089,92639.0,92630.0,0.3208]
[1735613305919,0.3608,92636.0,92619.0,0.3608]
[1735613306126,0.3608,92628.0,92619.0,0.3608]
[1735613306313,0.3608,92628.0,92609.0,0.3608]
[1735613307016,0.11223397,92620.0,92609.0,0.3608]
[1735613307613,0.11223397,92620.0,92609.0,0.3628]
[1735613307815,0.11223397,92620.0,92609.0,0.3668]
[1735613308423,0.11223397,92620.0,92609.0,0.3638]
[1735613309620,0.11223397,92620.0,92609.0,0.3618]
[1735613309822,0.3608,92615.0,92609.0,0.001]
[1735613311018,0.3608,92615.0,92604.0,0.0321]
[1735613311324,0.3628,92615.0,92604.0,0.0321]
[1735613311620,0.3608,92615.0,92604.0,0.0321]
[1735613311923,0.11223397,92614.0,92604.0,0.0321]
[1735613312222,0.3628,92615.0,92604.0,0.0321]
[1735613312615,0.3638,92615.0,92604.0,0.0321]
[1735613313319,0.3608,92615.0,92604.0,0.0321]
[1735613314127,0.11223397,92614.0,92601.0,0.3937]
[1735613314320,0.11223397,92614.0,92601.0,0.3608]
[1735613316221,0.3608,92607.0,92592.0,1.50056]
[1735613316532,0.11223397,92602.0,92592.0,1.5]
[1735613316722,0.11223397,92602.0,92591.0,0.0938]
[1735613317027,0.11223397,92602.0,92582.0,0.3608]
[1735613317228,0.3608,92596.0,92583.0,1.5]
[1735613317434,0.11223397,92592.0,92583.0,1.5]
[1735613318914,0.3608,92599.0,92583.0,1.5]
[1735613319827,0.11223397,92593.0,92583.0,1.5]
[1735613320320,0.11223397,92593.0,92583.0,1.501]
[1735613321128,0.11223397,92593.0,92583.0,1.502]
[1735613321832,0.11223397,92593.0,92583.0,1.503]
[1735613322530,0.11223397,92593.0,92583.0,1.502]
[1735613322731,0.11223397,92593.0,92583.0,1.5]
[1735613322927,0.11223397,92593.0,92583.0,1.501]
[1735613323331,0.11223397,92593.0,92583.0,1.5]
[1735613323831,0.11223397,92593.0,92585.0,0.3608]
[1735613325129,0.11323397,92593.0,92585.0,0.3608]
[1735613326234,0.11523397,92593.0,92585.0,0.3608]
[1735613332934,0.3608,92592.0,92579.0,0.3608]
[1735613334125,0.3608,92592.0,92579.0,0.3618]
[1735613334729,0.3608,92592.0,92579.0,0.3608]
[1735613334923,0.3608,92592.0,92579.0,0.3618]
[1735613336225,0.3608,92592.0,92579.0,0.415907]
[1735613337030,0.11223397,92600.0,92579.0,0.415907]
[1735613337227,0.11223397,92600.0,92587.0,0.3608]
[1735613337422,0.05377115,92600.0,92595.0,0.3608]
[1735613337627,0.11223397,92610.0,92596.0,0.0934]
[1735613339028,0.3638,92604.0,92597.0,1.5]
[1735613339228,0.41823179,92604.0,92597.0,1.5]
[1735613339629,0.41523179,92604.0,92596.0,0.0934]
[1735613339835,0.42523179,92604.0,92596.0,0.0944]
[1735613340530,0.42623179,92604.0,92597.0,0.001]
[1735613341235,0.42523179,92604.0,92596.0,0.0944]
[1735613341840,0.42623179,92604.0,92597.0,0.001]
[1735613342339,0.42323179,92604.0,92597.0,0.001]
[1735613342532,0.42623179,92604.0,92597.0,0.001]
[1735613343232,0.41823179,92604.0,92596.0,0.0934]
[1735613343431,0.42523179,92604.0,92596.0,0.0944]
[1735613343836,0.41823179,92604.0,92596.0,0.0934]
[1735613344133,0.42223179,92604.0,92597.0,0.001]
[1735613344341,0.42523179,92604.0,92597.0,0.001]
[1735613344538,0.42523179,92604.0,92596.0,0.0944]
[1735613349140,0.06443179,92604.0,92596.0,0.0944]
[1735613352034,0.06143179,92604.0,92596.0,0.0954]
[1735613353140,0.05443179,92604.0,92596.0,0.0974]
[1735613353338,0.84644001,92607.0,92596.0,0.004]
[1735613353643,0.3608,92599.0,92596.0,0.003]
[1735613354536,0.3608,92599.0,92596.0,0.001]
[1735613354738,0.3608,92599.0,92596.0,0.002]
[1735613355132,0.3608,92599.0,92596.0,0.001]
[1735613355335,0.3628,92599.0,92596.0,0.001]
[1735613356249,0.3678,92599.0,92582.0,0.3608]
[1735613356731,0.3678,92599.0,92591.0,0.3608]
[1735613356933,0.3698,92599.0,92596.0,0.001]
[1735613357443,0.003,92599.0,92591.0,0.3608]
[1735613357738,0.3608,92605.0,92591.0,0.3608]
[1735613357935,0.3608,92605.0,92592.0,0.0945]
[1735613358434,0.3608,92605.0,92593.0,1.5]
[1735613359250,0.006,92599.0,92596.0,0.001]
[1735613359943,0.3608,92605.0,92593.0,0.00356]
[1735613360147,0.3608,92605.0,92593.0,0.003]
[1735613360445,0.3608,92605.0,92592.0,1.5945]
[1735613360643,0.3608,92605.0,92596.0,0.002]
[1735613361147,0.3608,92605.0,92596.0,0.003]
[1735613361737,0.3608,92605.0,92593.0,0.003]
[1735613361939,0.53931452,92607.0,92601.0,0.3608]
[1735613362148,0.53819451,92607.0,92601.0,0.414894]
[1735613363541,0.05363451,92607.0,92601.0,0.3608]
[1735613363743,0.11223397,92620.0,92601.0,0.3608]
[1735613364140,0.001,92607.0,92601.0,0.3608]
[1735613366251,0.29035405,92616.0,92601.0,0.3608]
[1735613366546,0.001,92614.0,92601.0,0.3608]
[1735613366940,0.001,92607.0,92601.0,0.3608]
[1735613367541,0.34516272,92616.0,92601.0,0.3608]
[1735613367542,0.11223397,92611.0,92601.0,0.3608]
[1735613368252,0.001,92607.0,92601.0,0.3608]
[1735613369848,0.11223397,92611.0,92601.0,0.3608]
[1735613376961,0.11223397,92611.0,92580.0,0.11223397]
[1735613376962,0.3608,92605.0,92581.0,0.054106]
[1735613377150,0.11223397,92603.0,92582.0,1.5]
[1735613377356,0.11223397,92603.0,92582.0,1.50056]
[1735613378362,0.11223397,92603.0,92582.0,0.00056]
[1735613378554,0.11223397,92603.0,92581.0,0.085506]
[1735613380861,0.16572045,92603.0,92581.0,0.085506]
[1735613381158,0.16672045,92603.0,92581.0,0.085506]
[1735613382759,0.16672045,92603.0,92582.0,0.054105]
[1735613382958,0.16672045,92603.0,92584.0,0.054104]
[1735613383160,0.05348648,92603.0,92584.0,0.054104]
[1735613383360,0.11223397,92601.0,92584.0,0.054104]
[1735613386168,0.05480754,92604.0,92581.0,0.0314]
[1735613386360,0.48572001,92609.0,92581.0,0.0314]
[1735613386361,0.48572001,92609.0,92599.0,0.3608]
[1735613386567,0.4846,92609.0,92600.0,0.0623]
[1735613387664,0.53869012,92609.0,92600.0,0.0623]
[1735613389268,0.54069012,92609.0,92600.0,0.0623]
[1735613389769,0.54469012,92609.0,92600.0,0.0623]
[1735613391767,0.06009012,92609.0,92600.0,0.0623]
[1735613393065,0.06009012,92609.0,92600.0,0.4231]
[1735613393265,0.06009012,92609.0,92600.0,0.0623]
[1735613393867,0.05609012,92609.0,92600.0,0.0623]
[1735613394063,0.06009012,92609.0,92600.0,0.0623]
[1735613395568,0.05609012,92609.0,92600.0,0.0623]
[1735613395775,0.05909012,92609.0,92600.0,0.0623]
[1735613396177,0.05609012,92609.0,92600.0,0.0623]
[1735613396372,0.05909012,92609.0,92600.0,0.0623]
[1735613397467,0.05609012,92609.0,92600.0,0.0623]
[1735613397774,0.05909012,92609.0,92600.0,0.0623]
[1735613403269,0.06009012,92609.0,92600.0,0.0623]
[1735613403578,0.05809012,92609.0,92600.0,0.0623]
[1735613403979,0.05409012,92609.0,92600.0,0.0623]
[1735613404169,0.11223397,92620.0,92600.0,0.0623]
[1735613404569,0.34491369,92616.0,92600.0,0.0623]
[1735613405779,0.34491369,92616.0,92600.0,0.0633]
[1735613406263,0.34491369,92616.0,92600.0,0.17553397]
[1735613406578,0.48576001,92622.0,92610.0,0.054089]
[1735613406771,0.53906347,92622.0,92612.0,0.054088]
[1735613407278,0.53906347,92622.0,92618.0,0.3608]
[1735613407481,0.3608,92638.0,92619.0,0.066]
[1735613407778,0.3608,92638.0,92627.0,0.3608]
[1735613407968,0.3608,92638.0,92628.0,0.0303]
[1735613408864,0.41566744,92638.0,92628.0,0.0303]
[1735613409668,0.41566744,92638.0,92628.0,0.0313]
[1735613409874,0.42166744,92638.0,92628.0,0.0313]
[1735613410283,0.43066744,92638.0,92628.0,0.0313]
[1735613410474,0.42466744,92638.0,92628.0,0.0303]
[1735613410675,0.42966744,92638.0,92628.0,0.0303]
[1735613411478,0.42966744,92638.0,92626.0,0.3608]
[1735613412086,0.42066744,92638.0,92626.0,0.3608]
[1735613412276,0.42966744,92638.0,92626.0,0.3608]
[1735613412476,0.42466744,92638.0,92626.0,0.3608]
[1735613412778,0.42866744,92638.0,92626.0,0.3608]
[1735613413372,0.42866744,92638.0,92619.0,0.033]
[1735613413579,0.11223397,92630.0,92619.0,0.033]
[1735613413779,0.0323,92629.0,92619.0,0.033]
[1735613415583,0.3608,92625.0,92611.0,0.0637]
[1735613415785,0.11223397,92621.0,92611.0,0.0637]
[1735613417077,0.11323397,92621.0,92611.0,0.0637]
[1735613417278,0.001,92621.0,92611.0,0.0637]
[1735613418176,0.004,92621.0,92611.0,0.0637]
[1735613418373,0.11623397,92621.0,92611.0,0.0637]
[1735613418778,0.17128702,92621.0,92611.0,0.0637]
[1735613420075,0.17128702,92621.0,92611.0,0.0315]
[1735613421772,0.17128702,92621.0,92606.0,0.3608]
[1735613422387,0.3608,92617.0,92606.0,0.32045379]
[1735613422584,0.3608,92617.0,92606.0,0.30845379]
[1735613422778,0.3608,92617.0,92606.0,0.3042528]
[1735613424190,0.3608,92607.0,92597.0,0.0326]
[1735613424485,0.47303397,92607.0,92597.0,0.0326]
[1735613427978,0.47303397,92607.0,92597.0,0.0336]
[1735613428686,0.47303397,92607.0,92597.0,0.0326]
[1735613428888,0.47403397,92607.0,92597.0,0.0326]
[1735613429679,0.47503397,92607.0,92597.0,0.0326]
[1735613429987,0.52977693,92607.0,92597.0,0.0326]
[1735613432090,0.16897693,92607.0,92597.0,0.0326]
[1735613432290,0.3608,92600.0,92597.0,0.0326]
[1735613432790,0.3608,92600.0,92597.0,0.0336]
[1735613434682,0.3608,92600.0,92597.0,0.0326]
[1735613434885,0.3608,92600.0,92597.0,0.0336]
[1735613435284,0.3608,92600.0,92597.0,0.0326]
[1735613435486,0.3608,92600.0,92597.0,0.0336]
[1735613435998,0.3608,92600.0,92597.0,0.0326]
[1735613436196,0.3618,92600.0,92597.0,0.0326]
[1735613436696,0.3608,92600.0,92597.0,0.0336]
[1735613437892,0.3618,92600.0,92597.0,0.0336]
[1735613438292,0.3638,92600.0,92597.0,0.0326]
[1735613438683,0.3628,92600.0,92597.0,0.0326]
[1735613438986,0.3638,92600.0,92597.0,0.0326]
[1735613439380,0.3608,92600.0,92597.0,0.0326]
[1735613439696,0.3608,92600.0,92597.0,0.0336]
[1735613440594,0.05474296,92607.0,92599.0,0.3608]
[1735613440794,0.11223397,92610.0,92599.0,0.3608]
[1735613441186,0.11223397,92610.0,92600.0,0.0303]
[1735613442895,0.11323397,92610.0,92600.0,0.0303]
[1735613443089,0.11423397,92610.0,92600.0,0.0303]
[1735613443292,0.16952375,92610.0,92600.0,0.0303]
[1735613444594,0.16852375,92610.0,92600.0,0.0303]
[1735613444899,0.16952375,92610.0,92600.0,0.0303]
[1735613445090,0.17052375,92610.0,92600.0,0.0303]
[1735613445401,0.16952375,92610.0,92600.0,0.0303]
[1735613445699,0.16852375,92610.0,92600.0,0.0303]
[1735613445895,0.17052375,92610.0,92600.0,0.0303]
[1735613446298,0.1319675,92610.0,92600.0,0.0303]
[1735613448594,0.1309675,92610.0,92600.0,0.0303]
[1735613448794,0.1319675,92610.0,92600.0,0.0303]
[1735613448996,0.1299675,92610.0,92600.0,0.0303]
[1735613449196,0.1319675,92610.0,92600.0,0.0303]
[1735613449706,0.1329675,92610.0,92600.0,0.0303]
[1735613450290,0.1299675,92610.0,92600.0,0.0303]
[1735613450495,0.3608,92604.0,92600.0,0.0303]
[1735613452505,0.3618,92604.0,92600.0,0.0303]
[1735613452809,0.3648,92604.0,92600.0,0.0303]
[1735613453903,0.3618,92604.0,92600.0,0.0303]
[1735613454101,0.3648,92604.0,92597.0,0.0326]
[1735613455003,0.004,92604.0,92597.0,0.0326]
[1735613455204,0.003,92604.0,92597.0,0.0326]
[1735613455410,0.004,92604.0,92597.0,0.0326]
[1735613455601,0.001,92604.0,92597.0,0.0326]
[1735613455793,0.003,92604.0,92597.0,0.0326]
[1735613456001,0.002,92604.0,92597.0,0.0326]
[1735613456200,0.003,92604.0,92597.0,0.0326]
[1735613457809,0.3608,92605.0,92597.0,0.0326]
[1735613457810,0.19348311,92605.0,92597.0,0.0326]
[1735613458010,0.001,92604.0,92597.0,0.0326]
[1735613458713,0.003,92604.0,92597.0,0.0326]
[1735613459414,0.003,92604.0,92591.0,0.3939]
[1735613459609,0.07367772,92601.0,92591.0,0.3939]
[1735613462307,0.07467772,92601.0,92591.0,0.3939]
[1735613462514,0.07467772,92601.0,92591.0,0.3959]
[1735613463315,0.001,92601.0,92600.0,0.3608]
[1735613463813,0.05528978,92610.0,92600.0,0.3608]
[1735613464114,0.07367772,92620.0,92608.0,0.3608]
[1735613464314,0.07367772,92620.0,92609.0,0.0929]
[1735613464615,0.12660263,92620.0,92609.0,0.0929]
[1735613465010,0.20028035,92620.0,92609.0,0.0929]
[1735613465610,0.20928035,92620.0,92609.0,0.0929]
[1735613465813,0.20928035,92620.0,92609.0,0.0619]
[1735613466010,0.20928035,92620.0,92608.0,0.3608]
[1735613466516,0.20228035,92620.0,92608.0,0.3608]
[1735613466706,0.20828035,92620.0,92608.0,0.3608]
[1735613467114,0.20928035,92620.0,92608.0,0.3608]
[1735613467811,0.20628035,92620.0,92608.0,0.3608]
[1735613468012,0.3608,92617.0,92608.0,0.3608]
[1735613468201,0.3608,92609.0,92600.0,0.3608]
[1735613468407,0.3608,92609.0,92600.0,0.33724743]
[1735613469516,0.3628,92609.0,92600.0,0.33724743]
[1735613470816,0.3638,92609.0,92600.0,0.33724743]
[1735613472611,0.3648,92609.0,92600.0,0.33724743]
[1735613473717,0.40923014,92609.0,92600.0,0.33724743]
[1735613476118,0.04843014,92609.0,92600.0,0.33724743]
[1735613476318,0.04543014,92609.0,92608.0,0.3608]
[1735613476515,0.04843014,92609.0,92600.0,0.33724743]
[1735613476915,0.04843014,92609.0,92608.0,0.3608]
[1735613478035,0.04743014,92609.0,92608.0,0.3608]
[1735613478224,0.05043014,92609.0,92608.0,0.3608]
[1735613478631,0.04743014,92609.0,92608.0,0.3608]
[1735613478831,0.05143014,92609.0,92608.0,0.3608]
[1735613479034,0.05443014,92609.0,92608.0,0.3608]
[1735613479228,0.04743014,92609.0,92608.0,0.3608]
[1735613479426,0.05443014,92609.0,92608.0,0.3608]
[1735613480130,0.05443014,92609.0,92608.0,0.4533]
[1735613480537,0.05143014,92609.0,92608.0,0.4533]
[1735613480737,0.05443014,92609.0,92608.0,0.4533]
[1735613482238,0.05443014,92609.0,92608.0,1.9533]
[1735613482628,0.05443014,92609.0,92608.0,0.4533]
[1735613487135,0.05443014,92609.0,92608.0,0.3608]
[1735613488137,0.05443014,92609.0,92600.0,0.33724743]
[1735613489338,0.04743014,92609.0,92600.0,0.33724743]
[1735613489541,0.05043014,92609.0,92600.0,0.33724743]
[1735613489840,0.04843014,92609.0,92600.0,0.33724743]
[1735613490240,0.0312,92618.0,92608.0,0.3608]
[1735613491034,0.04616252,92618.0,92608.0,0.3608]
[1735613491230,0.031,92619.0,92608.0,0.3608]
[1735613491633,0.003,92618.0,92608.0,0.3608]
[1735613491833,0.003,92618.0,92617.0,0.3608]
[1735613492534,0.003,92618.0,92617.0,1.8608]
[1735613492933,0.009,92618.0,92617.0,1.8608]
[1735613493129,0.006,92618.0,92617.0,1.8608]
[1735613493646,0.009,92618.0,92617.0,1.8608]
[1735613494035,0.013,92618.0,92617.0,1.8608]
[1735613495233,0.013,92618.0,92617.0,0.3608]
[1735613498145,0.0593607,92618.0,92617.0,0.3608]
[1735613498444,0.013,92618.0,92617.0,0.3608]
[1735613502148,0.05924281,92618.0,92617.0,0.3608]
[1735613502336,0.013,92618.0,92617.0,0.3608]
[1735613503837,0.0659,92637.0,92617.0,0.3638]
[1735613505432,0.11161082,92637.0,92617.0,0.3638]
[1735613505745,0.11161082,92637.0,92620.0,0.11224043]
[1735613507143,0.04571082,92637.0,92630.0,0.3608]
[1735613507344,0.3915,92650.0,92631.0,0.0651]
[1735613507548,0.43698579,92650.0,92640.0,0.47304043]
[1735613507851,0.43698579,92650.0,92641.0,0.0322]
[1735613509139,0.07618579,92650.0,92648.0,0.3608]
[1735613510441,0.07718579,92650.0,92648.0,0.3608]
[1735613511947,0.07718579,92650.0,92641.0,0.0322]
[1735613512748,0.04748579,92650.0,92641.0,0.0322]
[1735613513449,0.04648579,92650.0,92641.0,0.0332]
[1735613513752,0.04548579,92650.0,92641.0,0.0352]
[1735613513952,0.18059624,92655.0,92641.0,0.0352]